fUSD/lending_fUSD_20251221
["ID","MTS","AMOUNT","RATE_DAILY","PERIOD"]
[399415648,1766335843366,-150.0,0.000155,2]
[399415649,1766335843376,-39337.55356305,0.00015518,2]
[399415650,1766335843384,-150.0,0.00015519,2]
[399415651,1766335843394,-150.0,0.00015524,2]
[399415652,1766335843404,-150.0,0.00015525,2]
[399415653,1766335843413,-150.0,0.0001553,2]
[399415654,1766335843422,-150.0,0.0001553,2]
[399415655,1766335843431,-150.0,0.00015535,2]
[399415656,1766335843440,-102521.8433316,0.00015542,2]
[399415657,1766335843450,-419.21,0.00015545,2]
[399415658,1766335843459,-150.0,0.00015559,2]
[399415659,1766335843469,-150.0,0.00015564,2]
[399415660,1766335843478,-150.0,0.00015571,2]
[399415661,1766335843487,-150.0,0.00015571,2]
[399415662,1766335843496,-150.0,0.00015571,2]
[399415663,1766335843505,-150.0,0.00015597,2]
[399415664,1766335843514,-150.0,0.00015604,2]
[399415665,1766335843523,-150.0,0.00015606,2]
[399415666,1766335843532,-150.0,0.00015611,2]
[399415667,1766335843542,-150.0,0.00015618,2]
[399415668,1766335843551,-150.0,0.00015627,2]
[399415669,1766335843560,-150.0,0.00015627,2]
[399415670,1766335843570,-150.0,0.00015642,2]
[399415671,1766335843579,-150.0,0.00015643,2]
[399415672,1766335843589,-150.0,0.00015665,2]
[399415673,1766335843598,-150.0,0.00015674,2]
[399415674,1766335843607,-150.0,0.00015677,2]
[399415675,1766335843616,-150.0,0.00015683,2]
[399415676,1766335843625,-150.0,0.00015692,2]
[399415677,1766335843635,-1372.87552006,0.00015693,2]
[399415678,1766335843643,-150.0,0.00015695,2]
[399415679,1766335843653,-2259.84,0.00015699,2]
[399415680,1766335843662,-150.0,0.00015712,2]
[399415681,1766335843671,-150.0,0.00015712,2]
[399415682,1766335843680,-150.0,0.00015712,2]
[399415684,1766335843689,-150.0,0.00015722,2]
[399415686,1766335843699,-150.0,0.00015748,2]
[399415688,1766335843707,-150.0,0.00015751,2]
[399415690,1766335843716,-150.0,0.0001576,2]
[399415692,1766335843726,-150.0,0.00015762,2]
[399415693,1766335843735,-150.0,0.00015763,2]
[399415695,1766335843744,-150.0,0.00015773,2]
[399415697,1766335843754,-150.0,0.00015773,2]
[399415699,1766335843763,-150.0,0.00015783,2]
[399415701,1766335843773,-150.0,0.00015801,2]
[399415703,1766335843782,-150.0,0.00015807,2]
[399415705,1766335843792,-150.0,0.00015818,2]
[399415707,1766335843801,-150.0,0.00015828,2]
[399415709,1766335843810,-150.0,0.00015831,2]
[399415711,1766335843819,-150.0,0.00015841,2]
[399415713,1766335843828,-150.0,0.00015854,2]
[399415715,1766335843838,-150.0,0.00015854,2]
[399415717,1766335843847,-150.0,0.00015854,2]
[399415719,1766335843856,-150.0,0.00015854,2]
[399415721,1766335843865,-150.0,0.00015854,2]
[399415723,1766335843875,-150.0,0.0001588,2]
[399415724,1766335843885,-150.0,0.00015889,2]
[399415725,1766335843895,-150.0,0.00015899,2]
[399415726,1766335843904,-150.0,0.00015901,2]
[399415727,1766335843914,-150.0,0.00015905,2]
[399415728,1766335843924,-150.0,0.0001592,2]
[399415729,1766335843935,-150.0,0.00015925,2]
[399415730,1766335843944,-150.0,0.00015925,2]
[399415731,1766335843955,-150.0,0.00015935,2]
[399415732,1766335843964,-150.0,0.00015948,2]
[399415733,1766335843973,-150.0,0.00015959,2]
[399415734,1766335843982,-150.0,0.0001596,2]
[399415735,1766335843991,-150.0,0.00015967,2]
[399415736,1766335844001,-150.0,0.00015967,2]
[399415737,1766335844011,-500.0,0.00015973,2]
[399415738,1766335844021,-500.0,0.00015973,2]
[399415739,1766335844030,-500.0,0.00015973,2]
[399415740,1766335844040,-500.0,0.00015973,2]
[399415741,1766335844050,-500.0,0.00015973,2]
[399415742,1766335844059,-500.0,0.00015973,2]
[399415743,1766335844069,-500.0,0.00015973,2]
[399415744,1766335844078,-500.0,0.00015973,2]
[399415745,1766335844088,-370.08174315,0.00015973,2]
[399415746,1766335844097,-500.0,0.00015973,2]
[399415747,1766335844107,-500.0,0.00015973,2]
[399415748,1766335844116,-500.0,0.00015973,2]
[399415749,1766335844127,-500.0,0.00015973,2]
[399415750,1766335844137,-500.0,0.00015973,2]
[399415751,1766335844147,-500.0,0.00015973,2]
[399415752,1766335844156,-500.0,0.00015973,2]
[399415753,1766335844166,-500.0,0.00015973,2]
[399415754,1766335844176,-500.4654119,0.00015973,2]
[399415755,1766335844186,-160.58296236,0.00015973,2]
[399415756,1766335844196,-333.50168371,0.00015973,2]
[399415757,1766335844205,-162.38378184,0.00015973,2]
[399415758,1766335844215,-555.97636192,0.00015973,2]
[399415759,1766335844224,-500.30670484,0.00015973,2]
[399415760,1766335844234,-500.0,0.00015973,2]
[399415761,1766335844243,-500.0,0.00015973,2]
[399415762,1766335844252,-500.0,0.00015973,2]
[399415763,1766335844262,-500.0,0.00015973,2]
[399415764,1766335844272,-160.18741035,0.00015973,2]
[399415765,1766335844282,-160.18740865,0.00015973,2]
[399415766,1766335844291,-160.18648397,0.00015973,2]
[399415767,1766335844303,-160.18740865,0.00015973,2]
[399415768,1766335844314,-160.18477965,0.00015973,2]
[399415769,1766335844326,-160.18740865,0.00015973,2]
[399415770,1766335844337,-500.0,0.00015973,2]
[399415771,1766335844346,-160.10991314,0.00015973,2]
[399415772,1766335844356,-160.18740865,0.00015973,2]
[399415773,1766335844365,-150.17482874,0.00015973,2]
[399415774,1766335844374,-500.0,0.00015973,2]
[399415775,1766335844383,-500.0,0.00015973,2]
[399415776,1766335844392,-330.74959628,0.00015973,2]
[399415777,1766335844405,-500.0,0.00015973,2]
[399415778,1766335844415,-500.0,0.00015973,2]
[399415779,1766335844426,-206.6241759,0.00015973,2]
[399415780,1766335844437,-570.29356194,0.00015973,2]
[399415781,1766335844447,-500.0,0.00015973,2]
[399415782,1766335844459,-500.0,0.00015973,2]
[399415783,1766335844470,-500.0,0.00015973,2]
[399415784,1766335844480,-160.18740865,0.00015973,2]
[399415785,1766335844489,-500.0,0.00015973,2]
[399415786,1766335844498,-500.0,0.00015973,2]
[399415787,1766335844507,-163.71055503,0.00015973,2]
[399415788,1766335844516,-164.83274193,0.00015973,2]
[399415789,1766335844526,-500.0,0.00015973,2]
[399415790,1766335844535,-551.71631931,0.00015973,2]
[399415791,1766335844543,-500.0,0.00015973,2]
[399415792,1766335844553,-500.0,0.00015973,2]
[399415793,1766335844562,-500.0,0.00015973,2]
[399415794,1766335844571,-500.0,0.00015973,2]
[399415795,1766335844581,-500.0,0.00015973,2]
[399415796,1766335844590,-500.0,0.00015973,2]
[399415797,1766335844599,-483.03971098,0.00015973,2]
[399415798,1766335844608,-307.28848797,0.00015973,2]
[399415799,1766335844618,-165.56666104,0.00015973,2]
[399415800,1766335844627,-500.0,0.00015973,2]
[399415801,1766335844637,-500.0,0.00015973,2]
[399415802,1766335844646,-500.0,0.00015973,2]
[399415803,1766335844655,-500.0,0.00015973,2]
[399415804,1766335844665,-500.0,0.00015973,2]
[399415805,1766335844674,-518.86476464,0.00015973,2]
[399415806,1766335844683,-500.0,0.00015973,2]
[399415807,1766335844693,-500.0,0.00015973,2]
[399415808,1766335844702,-334.60508476,0.00015973,2]
[399415809,1766335844711,-160.18741035,0.00015973,2]
[399415810,1766335844720,-500.0,0.00015973,2]
[399415811,1766335844729,-509.50050033,0.00015973,2]
[399415812,1766335844739,-500.0,0.00015973,2]
[399415813,1766335844748,-160.18740865,0.00015973,2]
[399415814,1766335844757,-160.18740865,0.00015973,2]
[399415815,1766335844767,-160.18648371,0.00015973,2]
[399415816,1766335844776,-160.18546537,0.00015973,2]
[399415817,1766335844785,-500.0,0.00015973,2]
[399415818,1766335844795,-500.0,0.00015973,2]
[399415819,1766335844804,-500.0,0.00015973,2]
[399415820,1766335844813,-500.0,0.00015973,2]
[399415821,1766335844823,-500.0,0.00015973,2]
[399415822,1766335844833,-500.0,0.00015973,2]
[399415823,1766335844842,-207.48820699,0.00015973,2]
[399415824,1766335844851,-500.0,0.00015973,2]
[399415825,1766335844860,-506.25214638,0.00015973,2]
[399415826,1766335844869,-329.18672895,0.00015973,2]
[399415827,1766335844879,-530.05316157,0.00015973,2]
[399415828,1766335844889,-500.67181276,0.00015973,2]
[399415829,1766335844898,-374.4166707,0.00015973,2]
[399415830,1766335844908,-168.59717172,0.00015973,2]
[399415831,1766335844918,-500.0,0.00015973,2]
[399415832,1766335844927,-500.0,0.00015973,2]
[399415833,1766335844936,-500.0,0.00015973,2]
[399415834,1766335844946,-500.0,0.00015973,2]
[399415835,1766335844956,-500.0,0.00015973,2]
[399415836,1766335844966,-500.0,0.00015973,2]
[399415837,1766335844975,-500.18172396,0.00015973,2]
[399415838,1766335844984,-509.1899532,0.00015973,2]
[399415839,1766335844993,-2259.92190316,0.00015973,2]
[399415840,1766335845002,-150.0,0.00015983,2]
[399415841,1766335845011,-1595.77264532,0.0001599,2]
[399415842,1766335845020,-150.0,0.00015995,2]
[399415843,1766335845030,-150.0,0.00015995,2]
[399415844,1766335845039,-150.0,0.00015999,2]
[399415845,1766335845047,-500.0,0.00015999,2]
[399415846,1766335845057,-500.0,0.00015999,2]
[399415847,1766335845066,-500.0,0.00015999,2]
[399415848,1766335845075,-500.0,0.00015999,2]
[399415849,1766335845083,-500.0,0.00015999,2]
[399415850,1766335845092,-500.0,0.00015999,2]
[399415851,1766335845101,-500.0,0.00015999,2]
[399415852,1766335845110,-500.0,0.00015999,2]
[399415853,1766335845119,-500.0,0.00015999,2]
[399415854,1766335845128,-3000.0,0.00016012,2]
[399415855,1766335845137,-1899.83178331,0.00016012,2]
[399415856,1766335845146,-3000.0,0.00016012,2]
[399415857,1766335845155,-2954.77156402,0.00016012,2]
[399415858,1766335845163,-638.30499273,0.00016012,2]
[399415859,1766335845172,-150.0,0.00016016,2]
[399415860,1766335845182,-150.0,0.00016016,2]
[399415861,1766335845191,-150.0,0.00016031,2]
[399415862,1766335845200,-150.0,0.00016035,2]
[399415863,1766335845209,-150.0,0.00016038,2]
[399415864,1766335845218,-150.0,0.00016043,2]
[399415865,1766335845227,-150.0,0.0001606,2]
[399415866,1766335845236,-222.82,0.00016061,2]
[399415867,1766335845245,-150.0,0.00016066,2]
[399415868,1766335845254,-150.0,0.00016078,2]
[399415869,1766335845263,-150.0,0.0001609,2]
[399415870,1766335845272,-1000.0,0.00016094,2]
[399415871,1766335845282,-150.0,0.00016097,2]
[399415872,1766335845290,-150.0,0.00016102,2]
[399415873,1766335845300,-150.0,0.00016103,2]
[399415874,1766335845309,-6503.45,0.00016116,2]
[399415875,1766335845318,-150.0,0.00016117,2]
[399415876,1766335845329,-150.0,0.00016137,2]
[399415877,1766335845339,-150.0,0.00016137,2]
[399415878,1766335845348,-150.0,0.00016137,2]
[399415879,1766335845357,-150.0,0.00016137,2]
[399415880,1766335845367,-150.0,0.00016137,2]
[399415881,1766335845377,-150.0,0.00016137,2]
[399415882,1766335845386,-150.0,0.00016157,2]
[399415883,1766335845395,-150.0,0.00016171,2]
[399415884,1766335845406,-150.0,0.00016172,2]
[399415885,1766335845415,-150.0,0.00016177,2]
[399415886,1766335845636,-150.0,0.00016184,2]
[399415887,1766335845646,-150.0,0.00016196,2]
[399415888,1766335845655,-150.0,0.00016208,2]
[399415889,1766335845665,-39337.55356305,0.00016209,2]
[399415890,1766335845674,-150.0,0.00016214,2]
[399415891,1766335845684,-150.0,0.00016231,2]
[399415892,1766335845693,-150.0,0.00016236,2]
[399415893,1766335845703,-150.0,0.00016239,2]
[399415894,1766335845712,-150.0,0.00016243,2]
[399415895,1766335845722,-150.0,0.00016258,2]
[399415896,1766335845731,-150.0,0.00016258,2]
[399415897,1766335845740,-150.0,0.00016275,2]
[399415898,1766335845749,-150.0,0.00016279,2]
[399415899,1766335845758,-150.0,0.00016279,2]
[399415900,1766335845768,-150.0,0.00016291,2]
[399415901,1766335845777,-500.0,0.00016297,2]
[399415902,1766335845787,-195.45,0.00016305,2]
[399415903,1766335845797,-150.0,0.00016307,2]
[399415904,1766335845806,-150.0,0.00016307,2]
[399415905,1766335845816,-150.0,0.00016314,2]
[399415906,1766335845826,-150.0,0.00016315,2]
[399415907,1766335845835,-279.48,0.00016316,2]
[399415908,1766335845844,-222.23,0.00016318,2]
[399415909,1766335845854,-150.0,0.00016326,2]
[399415910,1766335845864,-524.96331517,0.00016338,2]
[399415911,1766335845873,-150.0,0.00016339,2]
[399415912,1766335845883,-150.0,0.00016349,2]
[399415913,1766335845893,-150.0,0.00016349,2]
[399415914,1766335845903,-150.0,0.00016354,2]
[399415915,1766335845912,-500.0,0.00016356,2]
[399415917,1766335845923,-279.48,0.00016357,2]
[399415918,1766335845932,-222.23,0.00016361,2]
[399415919,1766335845942,-150.0,0.00016369,2]
[399415920,1766335845952,-150.0,0.00016373,2]
[399415921,1766335845961,-150.0,0.00016375,2]
[399415922,1766335845972,-150.0,0.00016385,2]
[399415923,1766335845982,-150.0,0.00016394,2]
[399415924,1766335845992,-279.47342915,0.00016398,2]
[399415925,1766335846002,-150.0,0.0001642,2]
[399415926,1766335846011,-150.0,0.0001642,2]
[399415927,1766335846021,-150.0,0.0001642,2]
[399415929,1766335846031,-150.0,0.0001642,2]
[399415930,1766335846041,-150.0,0.0001642,2]
[399415931,1766335846050,-150.0,0.00016433,2]
[399415932,1766335846059,-500.0,0.00016437,2]
[399415933,1766335846068,-1465.63903773,0.00016438,2]
[399415934,1766335846078,-1465.63903773,0.00016438,2]
[399415935,1766335846087,-1465.63903773,0.00016438,2]
[399415936,1766335846097,-1465.63903773,0.00016438,2]
[399415937,1766335846107,-1465.63903773,0.00016438,2]
[399415938,1766335846116,-1465.63903773,0.00016438,2]
[399415939,1766335846126,-1465.63903773,0.00016438,2]
[399415940,1766335846135,-1465.63903773,0.00016438,2]
[399415941,1766335846144,-1465.63903773,0.00016438,2]
[399415942,1766335846154,-1465.63903773,0.00016438,2]
[399415943,1766335846163,-1465.63903773,0.00016438,2]
[399415944,1766335846172,-1465.63903773,0.00016438,2]
[399415945,1766335846182,-1465.63903773,0.00016438,2]
[399415946,1766335846192,-1465.63903773,0.00016438,2]
[399415947,1766335846201,-1465.63903773,0.00016438,2]
[399415948,1766335846211,-1465.63903773,0.00016438,2]
[399415949,1766335846220,-1465.63903773,0.00016438,2]
[399415950,1766335846229,-1465.63903773,0.00016438,2]
[399415951,1766335846238,-1465.63903773,0.00016438,2]
[399415952,1766335846247,-1465.63903773,0.00016438,2]
[399415953,1766335846256,-1465.63903773,0.00016438,2]
[399415954,1766335846265,-1465.63903773,0.00016438,2]
[399415955,1766335846274,-1465.63903773,0.00016438,2]
[399415956,1766335846283,-1465.63903773,0.00016438,2]
[399415957,1766335846292,-1465.63903773,0.00016438,2]
[399415958,1766335846301,-1465.63903773,0.00016438,2]
[399415959,1766335846311,-1465.63903773,0.00016438,2]
[399415960,1766335846320,-1465.63903773,0.00016438,2]
[399415961,1766335846332,-1465.63903773,0.00016438,2]
[399415962,1766335846342,-1465.63903773,0.00016438,2]
[399415963,1766335846351,-1465.63903773,0.00016438,2]
[399415964,1766335846364,-1465.63903773,0.00016438,2]
[399415965,1766335846374,-1465.63903773,0.00016438,2]
[399415966,1766335846384,-1465.63903773,0.00016438,2]
[399415967,1766335846394,-1465.63903773,0.00016438,2]
[399415968,1766335846406,-1465.63903773,0.00016438,2]
[399415969,1766335846416,-1465.63903773,0.00016438,2]
[399415970,1766335846425,-1465.63903773,0.00016438,2]
[399415971,1766335846434,-1465.63903773,0.00016438,2]
[399415972,1766335846445,-1465.63903773,0.00016438,2]
[399415973,1766335846456,-1465.63903773,0.00016438,2]
[399415974,1766335846466,-1465.63903773,0.00016438,2]
[399415975,1766335846475,-1465.63903773,0.00016438,2]
[399415976,1766335846485,-1465.63903773,0.00016438,2]
[399415977,1766335846495,-1465.63903773,0.00016438,2]
[399415978,1766335846505,-1465.63903773,0.00016438,2]
[399415979,1766335846516,-1465.63903773,0.00016438,2]
[399415981,1766335846525,-1465.63903773,0.00016438,2]
[399415982,1766335846535,-1465.63903773,0.00016438,2]
[399415983,1766335846545,-1465.63903773,0.00016438,2]
[399415984,1766335846554,-1465.63903773,0.00016438,2]
[399415985,1766335846565,-1465.63903773,0.00016438,2]
[399415986,1766335846574,-1465.63903773,0.00016438,2]
[399415987,1766335846584,-1465.63903773,0.00016438,2]
[399415988,1766335846593,-1465.63903773,0.00016438,2]
[399415989,1766335846603,-1465.63903773,0.00016438,2]
[399415990,1766335846612,-1465.63903773,0.00016438,2]
[399415991,1766335846622,-1465.63903773,0.00016438,2]
[399415992,1766335846632,-1465.63903773,0.00016438,2]
[399415993,1766335846642,-1465.63903773,0.00016438,2]
[399415994,1766335846655,-1465.63903773,0.00016438,2]
[399415995,1766335846666,-1465.63903773,0.00016438,2]
[399415996,1766335846676,-1465.63903773,0.00016438,2]
[399415997,1766335846687,-1465.63903773,0.00016438,2]
[399415998,1766335846697,-1465.63903773,0.00016438,2]
[399415999,1766335846706,-1465.63903773,0.00016438,2]
[399416000,1766335846716,-1465.63903773,0.00016438,2]
[399416001,1766335846726,-681.56,0.00016438,2]
[399416002,1766335846735,-681.56,0.00016438,2]
[399416003,1766335846744,-681.56,0.00016438,2]
[399416004,1766335846754,-681.56,0.00016438,2]
[399416005,1766335846763,-681.56,0.00016438,2]
[399416006,1766335846773,-681.56,0.00016438,2]
[399416007,1766335846783,-681.56,0.00016438,2]
[399416008,1766335846793,-681.56,0.00016438,2]
[399416009,1766335846802,-681.56,0.00016438,2]
[399416010,1766335846811,-681.56,0.00016438,2]
[399416011,1766335846820,-3938.29905463,0.00016438,2]
[399416012,1766335846831,-681.56,0.00016438,2]
[399416013,1766335846841,-3938.29905463,0.00016438,2]
[399416014,1766335846850,-3938.29905463,0.00016438,2]
[399416015,1766335846859,-3938.29905463,0.00016438,2]
[399416016,1766335846869,-3938.29905463,0.00016438,2]
[399416017,1766335846879,-3938.29905463,0.00016438,2]
[399416018,1766335846890,-3938.29905463,0.00016438,2]
[399416019,1766335846901,-3938.29905463,0.00016438,2]
[399416020,1766335846912,-3938.29905463,0.00016438,2]
[399416021,1766335846922,-681.56,0.00016438,2]
[399416022,1766335846932,-3938.29905463,0.00016438,2]
[399416023,1766335846943,-3938.29905463,0.00016438,2]
[399416024,1766335846953,-3938.29905463,0.00016438,2]
[399416025,1766335846963,-3938.29905463,0.00016438,2]
[399416026,1766335846973,-3938.29905463,0.00016438,2]
[399416027,1766335846983,-3938.29905463,0.00016438,2]
[399416028,1766335846994,-3938.29905463,0.00016438,2]
[399416029,1766335847005,-3938.29905463,0.00016438,2]
[399416030,1766335847015,-681.56,0.00016438,2]
[399416031,1766335847024,-3938.29905463,0.00016438,2]
[399416032,1766335847034,-3938.29905463,0.00016438,2]
[399416033,1766335847043,-3938.29905463,0.00016438,2]
[399416034,1766335847053,-3938.29905463,0.00016438,2]
[399416035,1766335847063,-3938.29905463,0.00016438,2]
[399416036,1766335847072,-681.56,0.00016438,2]
[399416037,1766335847082,-681.56,0.00016438,2]
[399416038,1766335847092,-681.56,0.00016438,2]
[399416039,1766335847101,-681.56,0.00016438,2]
[399416040,1766335847111,-681.56,0.00016438,2]
[399416041,1766335847121,-681.56,0.00016438,2]
[399416042,1766335847131,-3938.29905455,0.00016438,2]
[399416043,1766335847140,-800.0,0.00016438,2]
[399416044,1766335847150,-150.0,0.00016443,2]
[399416045,1766335847159,-150.0,0.00016446,2]
[399416046,1766335847178,-150.0,0.00016455,2]
[399416047,1766335847187,-150.0,0.00016467,2]
[399416048,1766335847196,-150.0,0.00016473,2]
[399416049,1766335847206,-150.0,0.00016491,2]
[399416050,1766335847215,-150.0,0.00016501,2]
[399416051,1766335847225,-150.0,0.00016501,2]
[399416052,1766335847235,-150.0,0.00016511,2]
[399416053,1766335847244,-150.0,0.00016512,2]
[399416054,1766335847253,-150.0,0.00016514,2]
[399416055,1766335847263,-500.0,0.0001652,2]
[399416056,1766335847272,-500.0,0.0001652,2]
[399416057,1766335847282,-828.48,0.0001652,2]
[399416058,1766335847291,-248.8938967,0.00016521,2]
[399416059,1766335847300,-1000.0,0.00016521,2]
[399416060,1766335847310,-502.52786195,0.00016521,2]
[399416061,1766335847320,-1000.0,0.00016521,2]
[399416062,1766335847335,-1000.0,0.00016521,2]
[399416063,1766335847346,-1007.35959286,0.00016521,2]
[399416064,1766335847356,-1000.0,0.00016521,2]
[399416065,1766335847367,-500.56420784,0.00016521,2]
[399416066,1766335847376,-1000.0,0.00016521,2]
[399416067,1766335847386,-1000.0,0.00016521,2]
[399416068,1766335847397,-1000.0,0.00016521,2]
[399416069,1766335847407,-986.87494443,0.00016521,2]
[399416070,1766335847417,-979.05040621,0.00016521,2]
[399416071,1766335847426,-1000.0,0.00016521,2]
[399416072,1766335847435,-1000.0,0.00016521,2]
[399416073,1766335847444,-1000.0,0.00016521,2]
[399416074,1766335847454,-177.38138354,0.00016521,2]
[399416075,1766335847464,-500.52093975,0.00016521,2]
[399416076,1766335847474,-1000.0,0.00016521,2]
[399416077,1766335847483,-511.36256137,0.00016521,2]
[399416078,1766335847492,-452.23233136,0.00016521,2]
[399416079,1766335847502,-811.84683956,0.00016521,2]
[399416080,1766335847512,-1000.0,0.00016521,2]
[399416081,1766335847523,-500.67170266,0.00016521,2]
[399416082,1766335847532,-1000.0,0.00016521,2]
[399416083,1766335847541,-506.42109494,0.00016521,2]
[399416084,1766335847550,-1000.0,0.00016521,2]
[399416085,1766335847560,-1001.48988543,0.00016521,2]
[399416086,1766335847569,-1000.0,0.00016521,2]
[399416087,1766335847578,-576.10062402,0.00016521,2]
[399416088,1766335847587,-1000.0,0.00016521,2]
[399416089,1766335847596,-1000.0,0.00016521,2]
[399416090,1766335847608,-500.51801303,0.00016521,2]
[399416091,1766335847620,-1000.0,0.00016521,2]
[399416092,1766335847631,-1000.0,0.00016521,2]
[399416093,1766335847641,-590.29428357,0.00016521,2]
[399416094,1766335847652,-1000.0,0.00016521,2]
[399416095,1766335847661,-1000.0,0.00016521,2]
[399416096,1766335847674,-1000.0,0.00016521,2]
[399416097,1766335847684,-1000.0,0.00016521,2]
[399416098,1766335847694,-1000.0,0.00016521,2]
[399416099,1766335847704,-1000.0,0.00016521,2]
[399416100,1766335847714,-1000.0,0.00016521,2]
[399416101,1766335847724,-1000.0,0.00016521,2]
[399416102,1766335847735,-1000.0,0.00016521,2]
[399416103,1766335847746,-1000.0,0.00016521,2]
[399416104,1766335847757,-1000.0,0.00016521,2]
[399416105,1766335847766,-1001.73216536,0.00016521,2]
[399416106,1766335847779,-1000.0,0.00016521,2]
[399416107,1766335847789,-1000.0,0.00016521,2]
[399416108,1766335847800,-1000.0,0.00016521,2]
[399416109,1766335847811,-669.31135743,0.00016521,2]
[399416110,1766335847821,-378.15038662,0.00016521,2]
[399416111,1766335847832,-150.0,0.00016523,2]
[399416112,1766335847842,-150.0,0.00016526,2]
[399416113,1766335847853,-150.0,0.00016552,2]
[399416114,1766335847864,-3500.0,0.0001656,2]
[399416115,1766335847873,-3500.0,0.0001656,2]
[399416116,1766335847883,-150.0,0.00016562,2]
[399416117,1766335847892,-150.0,0.00016562,2]
[399416118,1766335847901,-150.0,0.00016562,2]
[399416119,1766335847910,-150.0,0.00016579,2]
[399416120,1766335847920,-150.0,0.00016582,2]
[399416121,1766335847930,-150.0,0.00016591,2]
[399416122,1766335847940,-150.0,0.00016597,2]
[399416123,1766335847949,-150.0,0.000166,2]
[399416124,1766335847958,-150.0,0.00016609,2]
[399416125,1766335847968,-150.0,0.00016631,2]
[399416126,1766335847977,-150.0,0.00016632,2]
[399416127,1766335847987,-150.0,0.00016647,2]
[399416128,1766335847996,-150.0,0.00016647,2]
[399416129,1766335848007,-150.0,0.00016656,2]
[399416130,1766335848092,-150.0,0.00016663,2]
[399416131,1766335848102,-150.0,0.00016668,2]
[399416132,1766335848112,-150.0,0.0001667,2]
[399416133,1766335848122,-150.0,0.00016677,2]
[399416134,1766335848131,-150.0,0.00016703,2]
[399416135,1766335848140,-150.0,0.00016703,2]
[399416136,1766335848150,-150.0,0.00016703,2]
[399416137,1766335848159,-150.0,0.0001671,2]
[399416138,1766335848168,-164.5,0.00016712,2]
[399416139,1766335848177,-150.0,0.00016715,2]
[399416140,1766335848187,-198.94914877,0.00016724,2]
[399416141,1766335848196,-150.0,0.00016739,2]
[399416142,1766335848209,-150.0,0.00016744,2]
[399416143,1766335848228,-150.0,0.00016744,2]
[399416144,1766335848237,-150.0,0.00016749,2]
[399416145,1766335848248,-150.0,0.0001675,2]
[399416146,1766335848258,-150.0,0.00016755,2]
[399416147,1766335848269,-150.0,0.00016774,2]
[399416148,1766335848279,-150.0,0.00016774,2]
[399416149,1766335848288,-150.0,0.00016782,2]
[399416150,1766335848297,-150.0,0.00016789,2]
[399416151,1766335848307,-150.0,0.00016798,2]
[399416152,1766335848316,-150.0,0.00016809,2]
[399416153,1766335848326,-150.0,0.00016825,2]
[399416154,1766335848338,-150.0,0.00016828,2]
[399416155,1766335848347,-150.0,0.00016832,2]
[399416156,1766335848356,-150.0,0.00016845,2]
[399416157,1766335848367,-150.0,0.00016845,2]
[399416158,1766335848376,-150.0,0.0001685,2]
[399416159,1766335848385,-200.0,0.00016864,2]
[399416160,1766335848394,-150.0,0.00016868,2]
[399416161,1766335848403,-150.0,0.0001688,2]
[399416162,1766335848414,-150.0,0.00016892,2]
[399416163,1766335848426,-1000.0,0.000169,2]
[399416164,1766335848435,-10000.0,0.000169,2]
[399416165,1766335848444,-39337.55356305,0.000169,2]
[399416166,1766335848454,-1514.00790089,0.000169,2]
[399416167,1766335848463,-1595.77264532,0.000169,2]
[399416168,1766335848473,-150.0,0.00016905,2]
[399416169,1766335848483,-150.0,0.00016907,2]
[399416170,1766335848492,-150.0,0.00016909,2]